{"text_format":"3","workbook":"xlsx","n_sheets":8,"sheets":["Upute","Redovne rutine","Povremeni prijatelji","Potencijalni kandidati","Mrežni plan za KV1","Mrežni plan za KV2","Mrežni plan za KV3","Mrežni plan za KV4"],"not_rendered":{"defined_names":7},"read":"whole","date_system":"1900"}

{"sheet":"Upute","index":0,"n_rows":17,"n_cols":5,"rows_kept":17,"merged":[[0,0,0,2],[1,1,1,6],[2,1,2,6],[3,1,3,6],[4,1,4,6],[5,1,5,6],[6,1,6,6],[7,1,7,6],[8,1,8,6],[9,1,9,6],[10,1,10,6],[11,1,11,6]]}
["Alat za praćenje dodirne baze",null,null,"Upute"]
[null,"1. Odlučite, u koju kategoriju vaš kontakt pada:"]
[null,"• Redovita rutina - osobe, s kojima želite redovito biti u kontaktu"]
[null,"• Povremena poznanstva – osobe, s kojima se želite prijaviti nekoliko puta godišnje"]
[null,"• Mogući izgledi – osobe/tvrtke, koje želite čuvati u datoteci, da biste se im mogli obratiti, kad bude pravo vrijeme"]
[null,"2. Otvorite odgovarajuću karticu radnog lista."]
[null,"3. Unesite podatke o korisniku (da biste stvorili novi redak u ćeliji, pritisnite Alt+Enter u sustavu Windows ili Option+Return na Macu)."]
[null,"Ovdje potražite nove upute za mobilne aplikacije Excel."]
[null,"4. U Datum daljnjeg rada stupcu za daljnji rad izbrišite ogledni datum/formulu, unesite, kad im se želite obratiti, \ni zatim pritisnite Enter."]
[null,"5. Stupac Datum daljnjeg rada s crvenom bojom, kad je datum vrlo blizu, žuta, kad se približava i \nzeleno, kad imate dovoljno vremena."]
[null,"6. Kako se datum uputa za daljnji rad približi, boja će se promijeniti u skladu s time."]
[null,"7. Kad se obratite kontaktu, upišite DA u okvir Gotovo? stupca. Datum će biti podložen sivom bojom. "]
[null,"8. Želite li im se ponovno obratiti, zamijenite DA s NE i upišite novi Datum daljnjeg rada."]
[null,null,"Crvena","Žuta","Zelena"]
[null,"Redovne rutine","Za 1 – 3 dana","Za 4 do 7 dana","Od 8 do 14+ dana"]
[null,"Povremeni prijatelji","Za 1 – 7 dana","Za 8 –45 dana","Od 46 do 90+ dana"]
[null,"Potencijalni kandidati","Za 1 – 14 dana","Od 15 do 60 dana","Od 60 do 120 dana"]

{"sheet":"Redovne rutine","index":1,"n_rows":7,"n_cols":8,"rows_kept":7,"merged":[[0,0,0,2]]}
["Alat za praćenje dodirne baze",null,null,"Redovne rutine"]
[]
["Ime i prezime","Tvrtka","Podaci za kontakt","Gdje smo se upoznali","Bilješke","Datum za daljnji rad","Gotovo","Bilješke iz razgovora"]
["Utvrda Garth","Adventure Works","Voditelj projekta\ngarth@adventure-works.com\n(234) 555-0134\nadventure-works.com\nlinkedin.com/in/garth-fort","Trgovačka emisija 2010.","Pitajte kćeri Sandy i kako se odvija preuređenje. Mrske su mu velike grupe i začinjena hrana.",{"$f":"TODAY()+8","v":"2021-07-20"},"NE"]
["Ime i prezime","Naziv tvrtke","Naziv radnog mjesta\nAdresa e-pošte\nTelefonski broj\nWeb-mjesto\nPoveznice na društvene profile\n","Mjesto","Unesite sve bilješke, koje želite zapamtiti o toj osobi; gdje ste se upoznali, o čemu ste razgovarali, što želite ispostaviti sljedeći put, kad budete razgovarali itd.",{"$f":"TODAY()-3","v":"2021-07-09"},"DA"]
["Ime i prezime","Naziv tvrtke","Naziv radnog mjesta\nAdresa e-pošte\nTelefonski broj\nWeb-mjesto\nPoveznice na društvene profile\n","Mjesto održavanja","Unesite sve bilješke, koje želite zapamtiti o toj osobi; gdje ste se upoznali, o čemu ste razgovarali, što želite ispostaviti sljedeći put, kad budete razgovarali itd.",{"$f":"TODAY()+-3","v":"2021-07-09"},"NE"]
["Ime i prezime","Naziv tvrtke","Naziv radnog mjesta\nAdresa e-pošte\nTelefonski broj\nWeb-mjesto\nPoveznice na društvene profile\n","Mjesto","Unesite sve bilješke, koje želite zapamtiti o toj osobi; gdje ste se upoznali, o čemu ste razgovarali, što želite ispostaviti sljedeći put, kad budete razgovarali itd.",{"$f":"TODAY()+6","v":"2021-07-18"},"NE"]

{"sheet":"Povremeni prijatelji","index":2,"n_rows":7,"n_cols":8,"rows_kept":7,"merged":[[0,0,0,2]]}
["Alat za praćenje dodirne baze",null,null,"Povremena poznanstva"]
[]
["Ime i prezime","Tvrtka","Podaci za kontakt","Gdje smo se upoznali","Bilješke","Datum za daljnji rad","Gotovo","Bilješke iz razgovora"]
["Utvrda Garth","Adventure Works","Upravitelj resursima\ngarth@adventure-works.com\n(434) 555-0123\nwww.adventure-works.com\nlinkedin.com/in/garth-fort","Odmor u Vermontu 2016","Praktično i kao kontakt za zapošljavanje, i za marketinška pitanja",{"$f":"TODAY()+90","v":"2021-10-10"},"NE"]
["Ime i prezime","Naziv tvrtke","Naziv radnog mjesta\nAdresa e-pošte\nTelefonski broj\nWeb-mjesto\nPoveznice na društvene profile\n","Mjesto","Unesite sve bilješke, koje želite zapamtiti o toj osobi; gdje ste se upoznali, o čemu ste razgovarali, što želite ispostaviti sljedeći put, kad budete razgovarali itd.",{"$f":"TODAY()-3","v":"2021-07-09"},"DA"]
["Ime i prezime","Naziv tvrtke","Naziv radnog mjesta\nAdresa e-pošte\nTelefonski broj\nWeb-mjesto\nPoveznice na društvene profile\n","Mjesto održavanja","Unesite sve bilješke, koje želite zapamtiti o toj osobi; gdje ste se upoznali, o čemu ste razgovarali, što želite ispostaviti sljedeći put, kad budete razgovarali itd.",{"$f":"TODAY()+-3","v":"2021-07-09"},"NE"]
["Ime i prezime","Naziv tvrtke","Naziv radnog mjesta\nAdresa e-pošte\nTelefonski broj\nWeb-mjesto\nPoveznice na društvene profile\n","Mjesto","Unesite sve bilješke, koje želite zapamtiti o toj osobi; gdje ste se upoznali, o čemu ste razgovarali, što želite ispostaviti sljedeći put, kad budete razgovarali itd.",{"$f":"TODAY()+40","v":"2021-08-21"},"NE"]

{"sheet":"Potencijalni kandidati","index":3,"n_rows":7,"n_cols":8,"rows_kept":7,"merged":[[0,0,0,2]]}
["Alat za praćenje dodirne baze",null,null,"Potencijalni kandidati"]
[]
["Ime i prezime","Tvrtka","Podaci za kontakt","Gdje smo se upoznali","Bilješke","Datum za daljnji rad","Gotovo","Bilješke iz razgovora"]
["Utvrda Garth","Samostalni djelatnik","Dizajner\nnetko@example.com\n425-555-0123\nexample.com\nlinkedin.com/in/garth-fort","Sinova diploma 2016","Nedavni stupanj – veoma vješt. Može biti korisno za buduće klijente.",{"$f":"TODAY()+89","v":"2021-10-09"},"NE"]
["Ime i prezime","Naziv tvrtke","Naziv radnog mjesta\nAdresa e-pošte\nTelefonski broj\nWeb-mjesto\nPoveznice na društvene profile\n","Mjesto","Unesite sve bilješke, koje želite zapamtiti o toj osobi; gdje ste se upoznali, o čemu ste razgovarali, što želite ispostaviti sljedeći put, kad budete razgovarali itd.",{"$f":"TODAY()-3","v":"2021-07-09"},"DA"]
["Ime i prezime","Naziv tvrtke","Naziv radnog mjesta\nAdresa e-pošte\nTelefonski broj\nWeb-mjesto\nPoveznice na društvene profile\n","Mjesto održavanja","Unesite sve bilješke, koje želite zapamtiti o toj osobi; gdje ste se upoznali, o čemu ste razgovarali, što želite ispostaviti sljedeći put, kad budete razgovarali itd.",{"$f":"TODAY()+-3","v":"2021-07-09"},"NE"]
["Ime i prezime","Naziv tvrtke","Naziv radnog mjesta\nAdresa e-pošte\nTelefonski broj\nWeb-mjesto\nPoveznice na društvene profile\n","Mjesto","Unesite sve bilješke, koje želite zapamtiti o toj osobi; gdje ste se upoznali, o čemu ste razgovarali, što želite ispostaviti sljedeći put, kad budete razgovarali itd.",{"$f":"TODAY()+30","v":"2021-08-11"},"NE"]

{"sheet":"Mrežni plan za KV1","index":4,"n_rows":20,"n_cols":6,"rows_kept":20,"merged":[[0,0,0,3],[2,0,2,3],[4,0,4,3],[14,5,17,5],[18,0,18,3]]}
["Plan proširenja mreže"]
["Upute"]
["Napišite, kako planirate proširiti mrežu ovog tromjesečja (npr. upućivati više telefonskih poziva, više putovanja itd.). Zatim svaki put, kad otvorite novi kontakt, promijenite stvaran broj kontakata, da biste pratili i vidjeli, koliko ste se približili svom cilju."]
[]
["Kako planiram ovaj kvartal proširiti ovu mrežu"]
["1. Upućujte više telefonskih poziva"]
["2. Putujte više"]
[]
[]
[]
[]
[]
[]
["Tromjesečni cilj kontakt","Rok","Stvarni tromjesečni ostvareni kontakti","Rezultati"]
[20,{"$f":"TODAY()","v":"2021-07-12"},12,{"$f":"IF(tblGoals[[#This Row],[Tromjesečni cilj kontakt]]>0,tblGoals[[#This Row],[Stvarni tromjesečni ostvareni kontakti]]/tblGoals[[#This Row],[Tromjesečni cilj kontakt]],\"\")","v":{"v":0.6,"d":"60%"}},null,"0% - 25%\n26% - 50%\n51% - 75%\n76% - 100%\n\nDosegnute promjene boja na temelju postotka"]
[{"$nulls":3},{"$f":"IF(tblGoals[[#This Row],[Tromjesečni cilj kontakt]]>0,tblGoals[[#This Row],[Stvarni tromjesečni ostvareni kontakti]]/tblGoals[[#This Row],[Tromjesečni cilj kontakt]],\"\")","v":""}]
[{"$nulls":3},{"$f":"IF(tblGoals[[#This Row],[Tromjesečni cilj kontakt]]>0,tblGoals[[#This Row],[Stvarni tromjesečni ostvareni kontakti]]/tblGoals[[#This Row],[Tromjesečni cilj kontakt]],\"\")","v":""}]
[]
["Razmišljanja o rezultatu / Napomene za poboljšanje"]
["Bilo je blizu. Umjesto toga pokušajte nazvati u vrijeme pauze za ručak."]

{"sheet":"Mrežni plan za KV2","index":5,"n_rows":20,"n_cols":6,"rows_kept":20,"merged":[[0,0,0,3],[2,0,2,3],[4,0,4,3],[14,5,17,5],[18,0,18,3]]}
["Plan proširenja mreže"]
["Upute"]
["Napišite, kako planirate proširiti mrežu ovog tromjesečja (npr. upućivati više telefonskih poziva, više putovanja itd.). Zatim svaki put, kad otvorite novi kontakt, promijenite stvaran broj kontakata, da biste pratili i vidjeli, koliko ste se približili svom cilju."]
[]
["Kako planiram ovaj kvartal proširiti ovu mrežu"]
["1. Upućujte više telefonskih poziva"]
["2. Putujte više"]
[]
[]
[]
[]
[]
[]
["Tromjesečni cilj kontakt","Rok","Stvarni tromjesečni ostvareni kontakti","Rezultati"]
[20,{"$f":"TODAY()","v":"2021-07-12"},12,{"$f":"IF(tblGoals3[[#This Row],[Tromjesečni cilj kontakt]]>0,tblGoals3[[#This Row],[Stvarni tromjesečni ostvareni kontakti]]/tblGoals3[[#This Row],[Tromjesečni cilj kontakt]],\"\")","v":{"v":0.6,"d":"60%"}},null,"0% - 25%\n26% - 50%\n51% - 75%\n76% - 100%\n\nDosegnute promjene boja na temelju postotka"]
[{"$nulls":3},{"$f":"IF(tblGoals3[[#This Row],[Tromjesečni cilj kontakt]]>0,tblGoals3[[#This Row],[Stvarni tromjesečni ostvareni kontakti]]/tblGoals3[[#This Row],[Tromjesečni cilj kontakt]],\"\")","v":""}]
[{"$nulls":3},{"$f":"IF(tblGoals3[[#This Row],[Tromjesečni cilj kontakt]]>0,tblGoals3[[#This Row],[Stvarni tromjesečni ostvareni kontakti]]/tblGoals3[[#This Row],[Tromjesečni cilj kontakt]],\"\")","v":""}]
[]
["Razmišljanja o rezultatu / Napomene za poboljšanje"]
["Bilo je blizu. Umjesto toga pokušajte nazvati u vrijeme pauze za ručak."]

{"sheet":"Mrežni plan za KV3","index":6,"n_rows":20,"n_cols":6,"rows_kept":20,"merged":[[0,0,0,3],[2,0,2,3],[4,0,4,3],[14,5,17,5],[18,0,18,3]]}
["Plan proširenja mreže"]
["Upute"]
["Napišite, kako planirate proširiti mrežu ovog tromjesečja (npr. upućivati više telefonskih poziva, više putovanja itd.). Zatim svaki put, kad otvorite novi kontakt, promijenite stvaran broj kontakata, da biste pratili i vidjeli, koliko ste se približili svom cilju."]
[]
["Kako planiram ovaj kvartal proširiti ovu mrežu"]
["1. Upućujte više telefonskih poziva"]
["2. Putujte više"]
[]
[]
[]
[]
[]
[]
["Tromjesečni cilj kontakt","Rok","Stvarni tromjesečni ostvareni kontakti","Rezultati"]
[20,{"$f":"TODAY()","v":"2021-07-12"},12,{"$f":"IF(tblGoals34[[#This Row],[Tromjesečni cilj kontakt]]>0,tblGoals34[[#This Row],[Stvarni tromjesečni ostvareni kontakti]]/tblGoals34[[#This Row],[Tromjesečni cilj kontakt]],\"\")","v":{"v":0.6,"d":"60%"}},null,"0% - 25%\n26% - 50%\n51% - 75%\n76% - 100%\n\nDosegnute promjene boja na temelju postotka"]
[{"$nulls":3},{"$f":"IF(tblGoals34[[#This Row],[Tromjesečni cilj kontakt]]>0,tblGoals34[[#This Row],[Stvarni tromjesečni ostvareni kontakti]]/tblGoals34[[#This Row],[Tromjesečni cilj kontakt]],\"\")","v":""}]
[{"$nulls":3},{"$f":"IF(tblGoals34[[#This Row],[Tromjesečni cilj kontakt]]>0,tblGoals34[[#This Row],[Stvarni tromjesečni ostvareni kontakti]]/tblGoals34[[#This Row],[Tromjesečni cilj kontakt]],\"\")","v":""}]
[]
["Razmišljanja o rezultatu / Napomene za poboljšanje"]
["Bilo je blizu. Umjesto toga pokušajte nazvati u vrijeme pauze za ručak."]

{"sheet":"Mrežni plan za KV4","index":7,"n_rows":20,"n_cols":6,"rows_kept":20,"merged":[[0,0,0,3],[2,0,2,3],[4,0,4,3],[14,5,17,5],[18,0,18,3]]}
["Plan proširenja mreže"]
["Upute"]
["Napišite, kako planirate proširiti mrežu ovog tromjesečja (npr. upućivati više telefonskih poziva, više putovanja itd.). Zatim svaki put, kad otvorite novi kontakt, promijenite stvaran broj kontakata, da biste pratili i vidjeli, koliko ste se približili svom cilju."]
[]
["Kako planiram ovaj kvartal proširiti ovu mrežu"]
["1. Upućujte više telefonskih poziva"]
["2. Putujte više"]
[]
[]
[]
[]
[]
[]
["Tromjesečni cilj kontakt","Rok","Stvarni tromjesečni ostvareni kontakti","Rezultati"]
[20,{"$f":"TODAY()","v":"2021-07-12"},12,{"$f":"IF(tblGoals348[[#This Row],[Tromjesečni cilj kontakt]]>0,tblGoals348[[#This Row],[Stvarni tromjesečni ostvareni kontakti]]/tblGoals348[[#This Row],[Tromjesečni cilj kontakt]],\"\")","v":{"v":0.6,"d":"60%"}},null,"0% - 25%\n26% - 50%\n51% - 75%\n76% - 100%\n\nDosegnute promjene boja na temelju postotka"]
[{"$nulls":3},{"$f":"IF(tblGoals348[[#This Row],[Tromjesečni cilj kontakt]]>0,tblGoals348[[#This Row],[Stvarni tromjesečni ostvareni kontakti]]/tblGoals348[[#This Row],[Tromjesečni cilj kontakt]],\"\")","v":""}]
[{"$nulls":3},{"$f":"IF(tblGoals348[[#This Row],[Tromjesečni cilj kontakt]]>0,tblGoals348[[#This Row],[Stvarni tromjesečni ostvareni kontakti]]/tblGoals348[[#This Row],[Tromjesečni cilj kontakt]],\"\")","v":""}]
[]
["Razmišljanja o rezultatu / Napomene za poboljšanje"]
["Bilo je blizu. Umjesto toga pokušajte nazvati u vrijeme pauze za ručak."]